fUSD/lending_fUSD_20240114
["ID","MTS","AMOUNT","RATE_DAILY","PERIOD"]
[311572550,1705252281542,-500.0,0.00030958,2]
[311572551,1705252281553,-500.0,0.00030958,2]
[311572552,1705252281564,-500.0,0.00030958,2]
[311572553,1705252281574,-500.0,0.00030958,2]
[311572554,1705252281585,-442.25704788,0.00030958,2]
[311572555,1705252281595,-500.0,0.00030958,2]
[311572556,1705252281606,-500.0,0.00030958,2]
[311572557,1705252281616,-500.0,0.00030958,2]
[311572558,1705252281627,-5406.14,0.00030958,2]
[311572559,1705252281637,-6443.32,0.00030958,2]
[311572560,1705252281648,-2591.43,0.00030958,2]
[311572561,1705252281659,-500.0,0.00030958,2]
[311572562,1705252281669,-500.0,0.00030958,2]
[311572563,1705252281679,-500.0,0.00030958,2]
[311572564,1705252281690,-500.0,0.00030958,2]
[311572565,1705252281700,-500.0,0.00030958,2]
[311572566,1705252281710,-2526.32,0.00030958,2]
[311572567,1705252281720,-3495.11,0.00030958,2]
[311572568,1705252281730,-482.8743547,0.00030958,2]
[311572569,1705252281741,-500.0,0.00030958,2]
[311572570,1705252281753,-1951.59,0.00030958,2]
[311572571,1705252281763,-1152.89,0.00030958,2]
[311572572,1705252281773,-500.0,0.00030958,2]
[311572573,1705252281783,-500.0,0.00030958,2]
[311572574,1705252281795,-1925.55,0.00030958,2]
[311572575,1705252281806,-1678.34,0.00030958,2]
[311572576,1705252281817,-4453.87,0.00030958,2]
[311572577,1705252281828,-1018.23,0.00030958,2]
[311572578,1705252281839,-1430.39,0.00030958,2]
[311572579,1705252281850,-7026.91,0.00030958,2]
[311572580,1705252281860,-500.0,0.00030958,2]
[311572581,1705252281870,-858.04,0.00030958,2]
[311572582,1705252281880,-1494.12,0.00030958,2]
[311572583,1705252281890,-639.77,0.00030958,2]
[311572584,1705252281900,-500.0,0.00030958,2]
[311572585,1705252281910,-500.0,0.00030958,2]
[311572586,1705252281920,-3493.55,0.00030958,2]
[311572587,1705252281930,-500.0,0.00030958,2]
[311572588,1705252281940,-1678.6,0.00030958,2]
[311572589,1705252281951,-500.0,0.00030958,2]
[311572590,1705252281961,-500.0,0.00030958,2]
[311572591,1705252281971,-539.82,0.00030958,2]
[311572592,1705252281981,-500.0,0.00030958,2]
[311572593,1705252281992,-500.0,0.00030958,2]
[311572594,1705252282002,-1647.84,0.00030958,2]
[311572595,1705252282013,-534.79,0.00030958,2]
[311572596,1705252282023,-500.0,0.00030958,2]
[311572597,1705252282033,-2587.79,0.00030958,2]
[311572598,1705252282043,-500.0,0.00030958,2]
[311572599,1705252282054,-4664.45,0.00030958,2]
[311572600,1705252282065,-797.9,0.00030958,2]
[311572601,1705252282074,-1743.36,0.00030958,2]
[311572602,1705252282085,-500.0,0.00030958,2]
[311572603,1705252282094,-570.38,0.00030958,2]
[311572604,1705252282104,-500.0,0.00030958,2]
[311572605,1705252282114,-3574.89,0.00030958,2]
[311572606,1705252282124,-2513.83,0.00030958,2]
[311572607,1705252282135,-3210.63,0.00030958,2]
[311572608,1705252282145,-500.0,0.00030958,2]
[311572609,1705252282155,-747.77,0.00030958,2]
[311572610,1705252282167,-2062.81,0.00030958,2]
[311572611,1705252282177,-500.0,0.00030958,2]
[311572612,1705252282188,-500.0,0.00030958,2]
[311572613,1705252282198,-674.96,0.00030958,2]
[311572614,1705252282208,-500.0,0.00030958,2]
[311572615,1705252282218,-1040.49,0.00030958,2]
[311572616,1705252282238,-2377.35,0.00030958,2]
[311572617,1705252282249,-12144.81,0.00030958,2]
[311572618,1705252282261,-500.0,0.00030958,2]
[311572619,1705252282271,-500.0,0.00030958,2]
[311572620,1705252282282,-500.0,0.00030958,2]
[311572621,1705252282292,-546.04,0.00030958,2]
[311572622,1705252282303,-500.0,0.00030958,2]
[311572623,1705252282314,-7506.39,0.00030958,2]
[311572624,1705252282324,-749.5,0.00030958,2]
[311572625,1705252282334,-2322.96,0.00030958,2]
[311572626,1705252282344,-536.52,0.00030958,2]
[311572627,1705252282355,-2599.12,0.00030958,2]
[311572628,1705252282366,-588.11,0.00030958,2]
[311572629,1705252282376,-559.01,0.00030958,2]
[311572630,1705252282387,-1465.44,0.00030958,2]
[311572631,1705252282398,-231.69450754,0.00030958,5]
[311572632,1705252282409,-6554.82,0.00030958,2]
[311572633,1705252282420,-500.0,0.00030958,2]
[311572634,1705252282430,-1329.38,0.00030958,2]
[311572635,1705252282441,-1946.34,0.00030958,2]
[311572636,1705252282452,-500.0,0.00030958,2]
[311572637,1705252282462,-500.0,0.00030958,2]
[311572638,1705252282473,-404.99656891,0.00030958,2]
[311572639,1705252282484,-1136.62,0.00030958,2]
[311572640,1705252282494,-796.83,0.00030958,2]
[311572641,1705252282505,-5430.89,0.00030958,2]
[311572642,1705252282516,-500.0,0.00030958,2]
[311572643,1705252282526,-61633.02,0.00030958,2]
[311572644,1705252282537,-500.0,0.00030958,2]
[311572645,1705252282547,-500.0,0.00030958,2]
[311572646,1705252282557,-500.0,0.00030958,2]
[311572647,1705252282568,-500.0,0.00030958,2]
[311572648,1705252282579,-1778.55,0.00030958,2]
[311572649,1705252282590,-1790.83,0.00030958,2]
[311572650,1705252282600,-500.0,0.00030958,2]
[311572651,1705252282610,-22604.09,0.00030958,2]
[311572652,1705252282620,-869.55,0.00030958,2]
[311572653,1705252282630,-2356.56,0.00030958,2]
[311572654,1705252282640,-193.23290044,0.00030958,2]
[311572655,1705252282650,-500.0,0.00030958,2]
[311572656,1705252282661,-1980.57,0.00030958,2]
[311572657,1705252282671,-4074.52,0.00030958,2]
[311572658,1705252282681,-2141.21,0.00030958,2]
[311572659,1705252282691,-5195.33,0.00030958,2]
[311572660,1705252282701,-1229.8,0.00030958,2]
[311572661,1705252282712,-1076.46,0.00030958,2]
[311572662,1705252282722,-500.0,0.00030958,2]
[311572663,1705252282732,-1807.57,0.00030958,2]
[311572664,1705252282743,-4351.31,0.00030958,2]
[311572665,1705252282753,-1715.26,0.00030958,2]
[311572666,1705252282764,-7640.79,0.00030958,2]
[311572667,1705252282774,-500.0,0.00030958,2]
[311572668,1705252282785,-902.59,0.00030958,2]
[311572669,1705252282795,-500.0,0.00030958,2]
[311572670,1705252282806,-1082.75,0.00030958,2]
[311572671,1705252282817,-592.57,0.00030958,2]
[311572672,1705252282828,-500.0,0.00030958,2]
[311572673,1705252282838,-3610.33,0.00030958,2]
[311572674,1705252282849,-2984.29,0.00030958,2]
[311572675,1705252282859,-4594.32,0.00030958,2]
[311572676,1705252282870,-4251.43,0.00030958,2]
[311572677,1705252282881,-1696.28,0.00030958,2]
[311572678,1705252282891,-1901.97,0.00030958,2]
[311572679,1705252282902,-500.0,0.00030958,2]
[311572680,1705252282912,-904.7,0.00030958,2]
[311572681,1705252282922,-22955.6,0.00030958,2]
[311572682,1705252282933,-1364.34,0.00030958,2]
[311572683,1705252282943,-517.44,0.00030958,2]
[311572684,1705252282953,-833.48,0.00030958,2]
[311572685,1705252282964,-500.0,0.00030958,2]
[311572686,1705252282974,-1054.06,0.00030958,2]
[311572687,1705252282984,-1158.82,0.00030958,2]
[311572688,1705252282995,-3356.05,0.00030958,2]
[311572689,1705252283006,-2618.39,0.00030958,2]
[311572690,1705252283017,-708.64,0.00030958,2]
[311572691,1705252283028,-6306.53,0.00030958,2]
[311572692,1705252283039,-3491.81,0.00030958,2]
[311572693,1705252283050,-500.0,0.00030958,2]
[311572694,1705252283060,-877.92,0.00030958,2]
[311572695,1705252283071,-836.39,0.00030958,2]
[311572696,1705252283082,-31200.17,0.00030958,2]
[311572697,1705252283092,-4436.97,0.00030958,2]
[311572698,1705252283103,-10151.79,0.00030958,2]
[311572699,1705252283114,-500.0,0.00030958,2]
[311572700,1705252283125,-838.58,0.00030958,2]
[311572701,1705252283135,-770.53,0.00030958,2]
[311572702,1705252283146,-500.0,0.00030958,2]
[311572703,1705252283157,-1471.55,0.00030958,2]
[311572704,1705252283168,-500.0,0.00030958,2]
[311572705,1705252283462,-500.0,0.00030958,2]
[311572706,1705252283482,-500.0,0.00030958,2]
[311572707,1705252283493,-500.0,0.00030958,2]
[311572708,1705252283505,-500.0,0.00030958,2]
[311572709,1705252283515,-10263.33,0.00030958,2]
[311572710,1705252283527,-500.0,0.00030958,2]
[311572711,1705252283537,-500.0,0.00030958,2]
[311572712,1705252283547,-806.68,0.00030958,2]
[311572713,1705252283557,-500.0,0.00030958,2]
[311572714,1705252283566,-500.0,0.00030958,2]
[311572715,1705252283575,-1020.34,0.00030958,2]
[311572716,1705252283585,-1644.23,0.00030958,2]
[311572717,1705252283594,-3073.24,0.00030958,2]
[311572718,1705252283604,-1054.96,0.00030958,2]
[311572719,1705252283613,-1156.79,0.00030958,2]
[311572720,1705252283623,-1129.49,0.00030958,2]
[311572721,1705252283633,-4781.67,0.00030958,2]
[311572722,1705252283642,-1374.02,0.00030958,2]
[311572723,1705252283652,-2272.95,0.00030958,2]
[311572724,1705252283661,-500.0,0.00030958,2]
[311572725,1705252283670,-688.61,0.00030958,2]
[311572726,1705252283680,-556.57,0.00030958,2]
[311572727,1705252283689,-778.93,0.00030958,2]
[311572728,1705252283699,-3190.47,0.00030958,2]
[311572729,1705252283708,-636.35636984,0.00030958,2]
[311572730,1705252283718,-8213.87,0.00030958,2]
[311572731,1705252283727,-3921.23,0.00030958,2]
[311572732,1705252283736,-774.75,0.00030958,2]
[311572733,1705252283746,-500.0,0.00030958,2]
[311572734,1705252283759,-7085.76,0.00030958,2]
[311572735,1705252283768,-546.38,0.00030958,2]
[311572736,1705252283778,-2449.62,0.00030958,2]
[311572737,1705252283787,-503.27345333,0.00030958,2]
[311572738,1705252283797,-1044.38,0.00030958,2]
[311572739,1705252283806,-500.0,0.00030958,2]
[311572740,1705252283815,-638.52,0.00030958,2]
[311572741,1705252283825,-5135.81,0.00030958,2]
[311572742,1705252283835,-500.0,0.00030958,2]
[311572743,1705252283845,-500.0,0.00030958,2]
[311572744,1705252283854,-629.5662747,0.00030958,2]
[311572745,1705252283863,-500.0,0.00030958,2]
[311572746,1705252283872,-1336.78,0.00030958,2]
[311572747,1705252283881,-2460.67,0.00030958,2]
[311572748,1705252283891,-500.0,0.00030958,2]
[311572749,1705252283900,-1398.15,0.00030958,2]
[311572750,1705252283914,-500.0,0.00030958,2]
[311572751,1705252283924,-1098.94,0.00030958,2]
[311572752,1705252283933,-4492.8,0.00030958,2]
[311572753,1705252283944,-500.0,0.00030958,2]
[311572754,1705252283953,-500.0,0.00030958,2]
[311572755,1705252283963,-3008.57,0.00030958,2]
[311572756,1705252283972,-3284.46,0.00030958,2]
[311572757,1705252283981,-500.0,0.00030958,2]
[311572758,1705252283990,-7685.59,0.00030958,2]
[311572759,1705252284000,-3213.1,0.00030958,2]
[311572760,1705252284013,-1204.64,0.00030958,2]
[311572761,1705252284023,-573.07,0.00030958,2]
[311572762,1705252284034,-500.0,0.00030958,2]
[311572763,1705252284045,-500.0,0.00030958,2]
[311572764,1705252284056,-1407.75,0.00030958,2]
[311572765,1705252284066,-1003.96,0.00030958,2]
[311572766,1705252284075,-500.0,0.00030958,2]
[311572767,1705252284086,-752.83,0.00030958,2]
[311572768,1705252284096,-500.0,0.00030958,2]
[311572769,1705252284105,-1833.5,0.00030958,2]
[311572770,1705252284115,-500.0,0.00030958,2]
[311572771,1705252284128,-2409.49,0.00030958,2]
[311572772,1705252284138,-2002.36,0.00030958,2]
[311572773,1705252284147,-2365.5,0.00030958,2]
[311572774,1705252284157,-3127.24,0.00030958,2]
[311572775,1705252284167,-500.0,0.00030958,2]
[311572776,1705252284176,-500.0,0.00030958,2]
[311572777,1705252284185,-500.0,0.00030958,2]
[311572778,1705252284195,-1218.59,0.00030958,2]
[311572779,1705252284205,-500.0,0.00030958,2]
[311572780,1705252284214,-1147.15,0.00030958,2]
[311572781,1705252284223,-500.0,0.00030958,2]
[311572782,1705252284233,-3216.13,0.00030958,2]
[311572783,1705252284243,-1139.18,0.00030958,2]
[311572784,1705252284252,-913.2,0.00030958,2]
[311572785,1705252284263,-2024.94,0.00030958,2]
[311572786,1705252284273,-500.0,0.00030958,2]
[311572787,1705252284283,-500.0,0.00030958,2]
[311572788,1705252284293,-500.0,0.00030958,2]
[311572789,1705252284303,-1930.43,0.00030958,2]
[311572790,1705252284312,-2892.7,0.00030958,2]
[311572791,1705252284322,-500.0,0.00030958,2]
[311572792,1705252284332,-1273.18,0.00030958,2]
[311572793,1705252284341,-500.0,0.00030958,2]
[311572794,1705252284351,-1926.93,0.00030958,2]
[311572795,1705252284362,-1071.28,0.00030958,2]
[311572796,1705252284372,-3972.66,0.00030958,2]
[311572797,1705252284382,-1807.54,0.00030958,2]
[311572798,1705252284393,-500.0,0.00030958,2]
[311572799,1705252284402,-7510.67,0.00030958,2]
[311572800,1705252284412,-587.94,0.00030958,2]
[311572801,1705252284422,-309.79158382,0.00030958,2]
[311572802,1705252284432,-509.02473663,0.00030958,2]
[311572803,1705252284444,-41187.94,0.00030958,2]
[311572804,1705252284454,-8460.19,0.00030958,2]
[311572805,1705252284464,-1441.22,0.00030958,2]
[311572806,1705252284474,-500.0,0.00030958,2]
[311572807,1705252284485,-500.0,0.00030958,2]
[311572808,1705252284494,-500.0,0.00030958,2]
[311572809,1705252284504,-15734.53,0.00030958,2]
[311572810,1705252284514,-500.0,0.00030958,2]
[311572811,1705252284523,-15516.01,0.00030958,2]
[311572812,1705252284533,-3242.02,0.00030958,2]
[311572813,1705252284542,-1119.54,0.00030958,2]
[311572814,1705252284551,-500.0,0.00030958,2]
[311572815,1705252284561,-1320.23,0.00030958,2]
[311572816,1705252284571,-1559.92,0.00030958,2]
[311572817,1705252284580,-500.0,0.00030958,2]
[311572818,1705252284589,-3775.7,0.00030958,2]
[311572819,1705252284599,-500.0,0.00030958,2]
[311572820,1705252284610,-500.0,0.00030958,2]
[311572821,1705252284619,-864.38,0.00030958,2]
[311572822,1705252284629,-500.0,0.00030958,2]
[311572823,1705252284638,-500.0,0.00030958,2]
[311572824,1705252284647,-3371.79,0.00030958,2]
[311572825,1705252284657,-588.26,0.00030958,2]
[311572826,1705252284667,-500.0,0.00030958,2]
[311572827,1705252284676,-500.0,0.00030958,2]
[311572828,1705252284687,-759.34,0.00030958,2]
[311572829,1705252284698,-947.37,0.00030958,2]
[311572830,1705252284708,-500.0,0.00030958,2]
[311572831,1705252284719,-500.0,0.00030958,2]
[311572832,1705252284729,-500.0,0.00030958,2]
[311572833,1705252284740,-4003.21,0.00030958,2]
[311572834,1705252284750,-500.0,0.00030958,2]
[311572835,1705252284763,-1017.91,0.00030958,2]
[311572836,1705252284773,-1037.88,0.00030958,2]
[311572837,1705252284783,-1446.34,0.00030958,2]
[311572838,1705252284794,-1493.77,0.00030958,2]
[311572839,1705252284805,-2318.96,0.00030958,2]
[311572840,1705252284815,-643.64,0.00030958,2]
[311572841,1705252284825,-972.67,0.00030958,2]
[311572842,1705252284835,-500.0,0.00030958,2]
[311572843,1705252284846,-500.0,0.00030958,2]
[311572844,1705252284856,-513.25327164,0.00030958,2]
[311572845,1705252284868,-4387.39,0.00030958,2]
[311572846,1705252284878,-500.0,0.00030958,2]
[311572847,1705252284888,-500.0,0.00030958,2]
[311572848,1705252284897,-603.75,0.00030958,2]
[311572849,1705252284908,-1632.29,0.00030958,2]
[311572850,1705252284918,-1885.84,0.00030958,2]
[311572851,1705252284927,-500.0,0.00030958,2]
[311572852,1705252284938,-500.0,0.00030958,2]
[311572853,1705252284947,-4784.66,0.00030958,2]
[311572854,1705252284957,-846.51,0.00030958,2]
[311572855,1705252284967,-832.48,0.00030958,2]
[311572856,1705252284977,-1240.53,0.00030958,2]
[311572857,1705252284986,-573.2,0.00030958,2]
[311572858,1705252284996,-500.0,0.00030958,2]
[311572859,1705252285006,-500.0,0.00030958,2]
[311572860,1705252285017,-3081.64,0.00030958,2]
[311572861,1705252285029,-3159.92,0.00030958,2]
[311572862,1705252285039,-500.0,0.00030958,2]
[311572863,1705252285049,-500.0,0.00030958,2]
[311572864,1705252285059,-675.96,0.00030958,2]
[311572865,1705252285068,-679.17,0.00030958,2]
[311572866,1705252285078,-13784.05,0.00030958,2]
[311572867,1705252285087,-1529.04,0.00030958,2]
[311572868,1705252285097,-500.0,0.00030958,2]
[311572869,1705252285106,-2924.52,0.00030958,2]
[311572870,1705252285115,-500.0,0.00030958,2]
[311572871,1705252285126,-2597.16,0.00030958,2]
[311572872,1705252285136,-2132.34,0.00030958,2]
[311572873,1705252285146,-718.21,0.00030958,2]
[311572874,1705252285157,-1113.77,0.00030958,2]
[311572875,1705252285167,-1549.0,0.00030958,2]
[311572876,1705252285178,-1085.96,0.00030958,2]
[311572877,1705252285187,-1421.58,0.00030958,2]
[311572878,1705252285197,-500.0,0.00030958,2]
[311572879,1705252285207,-3238.3,0.00030958,2]
[311572880,1705252285217,-1678.41,0.00030958,2]
[311572881,1705252285227,-500.0,0.00030958,2]
[311572882,1705252285237,-500.0,0.00030958,2]
[311572883,1705252285246,-4880.1,0.00030958,2]
[311572884,1705252285258,-500.0,0.00030958,2]
[311572885,1705252285268,-528.22082532,0.00030958,2]
[311572886,1705252285278,-193.78766942,0.00030958,2]
[311572887,1705252285287,-493.93126709,0.00030958,2]
[311572888,1705252285298,-540.27,0.00030958,2]
[311572889,1705252285307,-500.0,0.00030958,2]
[311572890,1705252285317,-1460.86,0.00030958,2]
[311572891,1705252285327,-21061.43,0.00030958,2]
[311572892,1705252285337,-1487.5,0.00030958,2]
[311572893,1705252285346,-1673.61,0.00030958,2]
[311572894,1705252285356,-1765.87,0.00030958,2]
[311572895,1705252285366,-582.26932032,0.00030958,2]
[311572896,1705252285376,-271.01988217,0.00030958,2]
[311572897,1705252285386,-500.0,0.00030958,2]
[311572898,1705252285396,-649.52,0.00030958,2]
[311572899,1705252285405,-500.0,0.00030958,2]
[311572900,1705252285415,-500.0,0.00030958,2]
[311572901,1705252285424,-1920.25,0.00030958,2]
[311572902,1705252285434,-500.0,0.00030958,2]
[311572903,1705252285444,-1168.62,0.00030958,2]
[311572904,1705252285454,-5619.76,0.00030958,2]
[311572905,1705252285463,-500.0,0.00030958,2]
[311572906,1705252285472,-3856.99,0.00030958,2]
[311572907,1705252285482,-520.52379627,0.00030958,2]
[311572908,1705252285491,-502.79573677,0.00030958,2]
[311572909,1705252285501,-500.0,0.00030958,2]
[311572910,1705252285513,-500.0,0.00030958,2]
[311572911,1705252285523,-500.0,0.00030958,2]
[311572912,1705252285533,-7583.02,0.00030958,2]
[311572913,1705252285543,-151.0,0.00030958,7]
[311572914,1705252285552,-200.0,0.00030987,2]
[311572915,1705252285562,-16498.51879345,0.00030994,4]
[311572916,1705252285572,-2934.31,0.00030995,2]
[311572917,1705252285582,-2934.31,0.00030995,2]
[311572918,1705252285593,-500.0,0.00030996,2]
[311572919,1705252285602,-2934.31,0.00030996,2]
[311572920,1705252285611,-1427.33,0.00030996,2]
[311572921,1705252285621,-191.72169962,0.00030996,2]
[311572922,1705252285631,-236.27638756,0.00030996,4]
[311572923,1705252285641,-202946.6900388,0.00030996,4]
[311572924,1705252285650,-3523.54822631,0.00030997,4]
[311572925,1705252285660,-1087.82445846,0.00030997,4]
[311572926,1705252285669,-500.0,0.00030998,2]
[311572927,1705252285678,-500.0,0.00030998,2]
[311572928,1705252285687,-500.0,0.00030998,2]
[311572929,1705252285697,-870.13,0.00030998,2]
[311572930,1705252285706,-870.13,0.00030998,2]
[311572931,1705252285715,-870.13,0.00030998,2]
[311572932,1705252285725,-218.03348705,0.00030998,4]
[311572933,1705252285736,-417.42928207,0.00030998,4]
[311572934,1705252285746,-444.12221015,0.00030999,2]
[311572935,1705252285762,-870.13,0.00030999,2]
[311572936,1705252285772,-500.0,0.00030999,4]
[311572937,1705252285782,-500.0,0.00030999,4]
[311572938,1705252285791,-500.0,0.00030999,4]
[311572939,1705252285802,-500.0,0.00030999,4]
[311572940,1705252285919,-500.0,0.00030999,4]
[311572941,1705252285929,-615.04877309,0.00030999,4]
[311572942,1705252285938,-572.21325952,0.00030999,4]
[311572943,1705252285948,-500.0,0.00030999,4]
[311572944,1705252285957,-444.80745492,0.00030999,4]
[311572945,1705252285966,-500.0,0.00030999,4]
[311572946,1705252285975,-233.59664441,0.00030999,4]
[311572947,1705252285984,-500.0,0.00030999,4]
[311572948,1705252285994,-500.0,0.00030999,4]
[311572949,1705252286003,-500.0,0.00030999,4]
[311572950,1705252286015,-500.0,0.00030999,4]
[311572951,1705252286024,-500.0,0.00030999,4]
[311572952,1705252286033,-500.0,0.00030999,4]
[311572953,1705252286043,-500.0,0.00030999,4]
[311572954,1705252286052,-150.0,0.00031048,2]
[311572955,1705252286062,-153.84,0.0003105,2]
[311572956,1705252286071,-1020.508,0.00031059,2]
[311572957,1705252286080,-881.6443555,0.000311,2]
[311572958,1705252286089,-1904.69435412,0.00031132,2]
[311572959,1705252286099,-166.22,0.0003118,2]
[311572960,1705252286108,-795.04,0.00031211,2]
[311572961,1705252286117,-31406.87050793,0.00031229,2]
[311572962,1705252286127,-300.0,0.00031231,2]
[311572963,1705252286136,-784.69,0.00031232,2]
[311572964,1705252286146,-500.0,0.00031232,2]
[311572965,1705252286155,-500.0,0.00031232,2]
[311572966,1705252286164,-500.0,0.00031232,2]
[311572967,1705252286174,-500.0,0.00031232,2]
[311572968,1705252286183,-210.82805401,0.00031232,2]
[311572969,1705252286193,-1131.44,0.00031232,2]
[311572970,1705252286202,-524.66,0.00031232,2]
[311572971,1705252286211,-1240.44,0.00031232,2]
[311572972,1705252286220,-500.0,0.00031232,2]
[311572973,1705252286229,-1232.05,0.00031232,2]
[311572974,1705252286239,-500.0,0.00031232,2]
[311572975,1705252286248,-767.48,0.00031232,2]
[311572976,1705252286258,-500.0,0.00031232,2]
[311572977,1705252286268,-1126.41,0.00031232,2]
[311572978,1705252286277,-500.0,0.00031232,2]
[311572979,1705252286287,-927.58,0.00031232,2]
[311572980,1705252286296,-500.0,0.00031232,2]
[311572981,1705252286306,-500.0,0.00031232,2]
[311572982,1705252286315,-1002.34,0.00031232,2]
[311572983,1705252286324,-500.0,0.00031232,2]
[311572984,1705252286333,-576.02,0.00031232,2]
[311572985,1705252286343,-1451.92,0.00031232,2]
[311572986,1705252286352,-848.75,0.00031232,2]
[311572987,1705252286361,-500.0,0.00031232,2]
[311572988,1705252286371,-1177.6,0.00031232,2]
[311572989,1705252286380,-1755.06,0.00031232,2]
[311572990,1705252286389,-1716.01,0.00031232,2]
[311572991,1705252286398,-500.0,0.00031232,2]
[311572992,1705252286408,-500.0,0.00031232,2]
[311572993,1705252286417,-1136.11,0.00031232,2]
[311572994,1705252286426,-500.0,0.00031232,2]
[311572995,1705252286436,-647.22,0.00031232,2]
[311572996,1705252286445,-1382.37,0.00031232,2]
[311572997,1705252286454,-500.0,0.00031232,2]
[311572998,1705252286463,-600.55909208,0.00031232,2]
[311572999,1705252286472,-836.86,0.00031232,2]
[311573000,1705252286481,-500.0,0.00031232,2]
[311573001,1705252286490,-500.0,0.00031232,2]
[311573002,1705252286500,-865.23,0.00031232,2]
[311573003,1705252286511,-500.0,0.00031232,2]
[311573004,1705252286520,-500.0,0.00031232,2]
[311573005,1705252286529,-500.0,0.00031232,2]
[311573006,1705252286539,-500.0,0.00031232,2]
[311573007,1705252286548,-500.0,0.00031232,2]
[311573008,1705252286558,-863.21,0.00031232,2]
[311573009,1705252286567,-1116.11,0.00031232,2]
[311573010,1705252286576,-500.0,0.00031232,2]
[311573011,1705252286585,-1335.88,0.00031232,2]
[311573012,1705252286594,-1690.6,0.00031232,2]
[311573013,1705252286603,-1241.32,0.00031232,2]
[311573014,1705252286612,-1048.27,0.00031232,2]
[311573015,1705252286621,-2021.1,0.00031232,2]
[311573016,1705252286631,-1127.62,0.00031232,2]
[311573017,1705252286639,-500.0,0.00031232,2]
[311573018,1705252286649,-666.2,0.00031232,2]
[311573019,1705252286658,-835.47,0.00031232,2]
[311573020,1705252286667,-500.0,0.00031232,2]
[311573021,1705252286676,-720.99,0.00031232,2]
[311573022,1705252286685,-1153.09,0.00031232,2]
[311573023,1705252286695,-804.23,0.00031232,2]
[311573024,1705252286704,-500.0,0.00031232,2]
[311573025,1705252286713,-1037.19,0.00031232,2]
[311573026,1705252286722,-1078.01,0.00031232,2]
[311573027,1705252286732,-824.07,0.00031232,2]
[311573028,1705252286741,-1900.62,0.00031232,2]
[311573029,1705252286751,-513.8295823,0.00031232,2]
[311573030,1705252286761,-2002.51,0.00031232,2]
[311573031,1705252286771,-678.83,0.00031232,2]
[311573032,1705252286781,-959.7,0.00031232,2]
[311573033,1705252286790,-500.0,0.00031232,2]
[311573034,1705252286800,-500.0,0.00031232,2]
[311573035,1705252286809,-500.0,0.00031232,2]
[311573036,1705252286818,-650.03,0.00031232,2]
[311573037,1705252286828,-500.0,0.00031232,2]
[311573038,1705252286837,-500.0,0.00031232,2]
[311573039,1705252286846,-1629.93,0.00031232,2]
[311573040,1705252286855,-1040.72,0.00031232,2]
[311573041,1705252286864,-1885.14,0.00031232,2]
[311573042,1705252286873,-2041.9,0.00031232,2]
[311573043,1705252286882,-500.0,0.00031232,2]
[311573044,1705252286891,-500.0,0.00031232,2]
[311573045,1705252286900,-500.0,0.00031232,2]
[311573046,1705252286910,-500.0,0.00031232,2]
[311573047,1705252286919,-500.0,0.00031232,2]
[311573048,1705252286929,-500.0,0.00031232,2]
[311573049,1705252286939,-1619.28,0.00031232,2]